[Event "Titled Tuesday Blitz June 20 Early 2023"]
[White "Bodnaruk, Anastasia"]
[Black "Peiris, T G M"]
[WhiteFideId "4181751"]
[BlackFideId "9901310"]
[WhiteElo "2304"]
[BlackElo "2022"]
[Result "1-0"]
[Round "1"]
[TimeControl "180+2"]
[Date "2023.06.20"]
[WhiteClock "0:01:03"]
[BlackClock "0:00:03"]
[Board "191"]

1. e4 {[%clk 0:03:00]}  c6 {[%clk 0:02:56]} 2. d4 {[%clk 0:03:00]}  d5 {[%clk 0:02:55]} 3. e5 {[%clk 0:03:00]}  Bf5 {[%clk 0:02:54]} 4. Nf3 {[%clk 0:02:59]}  e6 {[%clk 0:02:53]} 5. Be2 {[%clk 0:02:59]}  c5 {[%clk 0:02:50]} 6. O-O {[%clk 0:02:57]}  Nc6 {[%clk 0:02:44]} 7. c3 {[%clk 0:02:57]}  Nge7 {[%clk 0:02:28]} 8. Nh4 {[%clk 0:02:41]}  Bg6 {[%clk 0:02:21]} 9. Nxg6 {[%clk 0:02:36]}  hxg6 {[%clk 0:02:20]} 10. dxc5 {[%clk 0:01:54]}  Nf5 {[%clk 0:02:11]} 11. b4 {[%clk 0:01:48]}  Qh4 {[%clk 0:00:54]} 12. h3 {[%clk 0:01:48]}  Be7 {[%clk 0:00:34]} 13. Nd2 {[%clk 0:01:40]}  Nxe5 {[%clk 0:00:26]} 14. Bb5+ {[%clk 0:01:38]}  Nc6 {[%clk 0:00:15]} 15. Nf3 {[%clk 0:01:35]}  Qh5 {[%clk 0:00:15]} 16. Ne5 {[%clk 0:01:31]}  O-O-O {[%clk 0:00:12]} 17. Bxc6 {[%clk 0:01:18]}  bxc6 {[%clk 0:00:12]} 18. Qa4 {[%clk 0:01:16]}  f6 {[%clk 0:00:06]} 19. Nxc6 {[%clk 0:01:14]}  Nh4 {[%clk 0:00:04]} 20. Nxe7+ {[%clk 0:01:07]}  Kc7 {[%clk 0:00:03]} 21. Qxa7# {[%clk 0:01:03]} 1-0


[Site "https://www.chess.com"]

[Event "Titled Tuesday Blitz June 20 Early 2023"]
[White "Thiel, Thomas"]
[Black "Sourath Biswas"]
[WhiteFideId "4615964"]
[BlackFideId "35091484"]
[WhiteElo "2233"]
[BlackElo "2171"]
[Result "0-1"]
[Round "1"]
[TimeControl "180+2"]
[Date "2023.06.20"]
[WhiteClock "0:00:22"]
[BlackClock "0:00:28"]
[Board "192"]

1. e4 {[%clk 0:02:58]}  c6 {[%clk 0:03:00]} 2. d4 {[%clk 0:02:56]}  d5 {[%clk 0:03:01]} 3. exd5 {[%clk 0:02:56]}  cxd5 {[%clk 0:03:01]} 4. c4 {[%clk 0:02:55]}  Nf6 {[%clk 0:03:01]} 5. Nc3 {[%clk 0:02:55]}  Nc6 {[%clk 0:03:00]} 6. Bg5 {[%clk 0:02:52]}  dxc4 {[%clk 0:02:57]} 7. Bxc4 {[%clk 0:02:49]}  Qxd4 {[%clk 0:02:55]} 8. Qxd4 {[%clk 0:02:47]}  Nxd4 {[%clk 0:02:56]} 9. O-O-O {[%clk 0:02:45]}  h6 {[%clk 0:02:32]} 10. Bxf6 {[%clk 0:02:40]}  exf6 {[%clk 0:02:22]} 11. Rxd4 {[%clk 0:02:39]}  Bc5 {[%clk 0:02:19]} 12. Re4+ {[%clk 0:02:37]}  Kf8 {[%clk 0:02:18]} 13. Re2 {[%clk 0:02:27]}  Bf5 {[%clk 0:02:15]} 14. Nf3 {[%clk 0:02:24]}  Rc8 {[%clk 0:02:14]} 15. Rd1 {[%clk 0:02:07]}  a6 {[%clk 0:01:56]} 16. Nd4 {[%clk 0:01:55]}  Bg4 {[%clk 0:01:47]} 17. f3 {[%clk 0:01:54]}  Bh5 {[%clk 0:01:47]} 18. Nf5 {[%clk 0:01:50]}  Bg6 {[%clk 0:01:39]} 19. Nd6 {[%clk 0:01:49]}  Bxd6 {[%clk 0:01:27]} 20. Rxd6 {[%clk 0:01:50]}  b5 {[%clk 0:01:26]} 21. Bd3 {[%clk 0:01:34]}  Bxd3 {[%clk 0:01:22]} 22. Rxd3 {[%clk 0:01:34]}  b4 {[%clk 0:01:22]} 23. Kc2 {[%clk 0:01:25]}  bxc3 {[%clk 0:01:21]} 24. Rxc3 {[%clk 0:01:24]}  Rxc3+ {[%clk 0:01:05]} 25. Kxc3 {[%clk 0:01:25]}  g5 {[%clk 0:01:05]} 26. Kb4 {[%clk 0:01:25]}  Kg7 {[%clk 0:01:03]} 27. Ka5 {[%clk 0:01:25]}  Ra8 {[%clk 0:01:04]} 28. b4 {[%clk 0:01:24]}  f5 {[%clk 0:00:59]} 29. Rc2 {[%clk 0:01:23]}  Rb8 {[%clk 0:00:41]} 30. a4 {[%clk 0:01:22]}  f6 {[%clk 0:00:28]} 31. Rc6 {[%clk 0:01:18]}  Rd8 {[%clk 0:00:26]} 32. Rxa6 {[%clk 0:01:15]}  Rd2 {[%clk 0:00:26]} 33. b5 {[%clk 0:01:15]}  Rxg2 {[%clk 0:00:27]} 34. b6 {[%clk 0:01:15]}  Rb2 {[%clk 0:00:28]} 35. Ra7+ {[%clk 0:01:13]}  Kg6 {[%clk 0:00:28]} 36. b7 {[%clk 0:01:12]}  g4 {[%clk 0:00:28]} 37. fxg4 {[%clk 0:01:09]}  f4 {[%clk 0:00:29]} 38. Ra6 {[%clk 0:00:33]}  Rxb7 {[%clk 0:00:26]} 39. Rb6 {[%clk 0:00:32]}  Rxb6 {[%clk 0:00:25]} 40. Kxb6 {[%clk 0:00:31]}  f3 {[%clk 0:00:25]} 41. a5 {[%clk 0:00:31]}  f2 {[%clk 0:00:26]} 42. a6 {[%clk 0:00:31]}  f1=Q {[%clk 0:00:27]} 43. a7 {[%clk 0:00:31]}  Qg2 {[%clk 0:00:27]} 44. Kc7 {[%clk 0:00:22]}  Qa8 {[%clk 0:00:28]} 0-1


[Site "https://www.chess.com"]

[Event "Titled Tuesday Blitz June 20 Early 2023"]
[White "Sowul, Bartosz"]
[Black "Politov, Pavel Y."]
[WhiteFideId "1137590"]
[BlackFideId "24110515"]
[WhiteElo "2188"]
[BlackElo "2066"]
[Result "1-0"]
[Round "1"]
[TimeControl "180+2"]
[Date "2023.06.20"]
[WhiteClock "0:00:51"]
[BlackClock "0:00:22"]
[Board "193"]

1. e4 {[%clk 0:02:58]}  c5 {[%clk 0:02:52]} 2. Nc3 {[%clk 0:02:58]}  d6 {[%clk 0:02:51]} 3. d4 {[%clk 0:02:58]}  cxd4 {[%clk 0:02:50]} 4. Qxd4 {[%clk 0:02:58]}  Nc6 {[%clk 0:02:49]} 5. Qd2 {[%clk 0:02:59]}  g6 {[%clk 0:02:47]} 6. b3 {[%clk 0:02:58]}  Bh6 {[%clk 0:02:44]} 7. f4 {[%clk 0:02:58]}  Nf6 {[%clk 0:02:30]} 8. Bb2 {[%clk 0:02:56]}  O-O {[%clk 0:02:29]} 9. O-O-O {[%clk 0:02:56]}  e5 {[%clk 0:02:29]} 10. g3 {[%clk 0:02:55]}  Bg4 {[%clk 0:02:22]} 11. Be2 {[%clk 0:02:36]}  Nd4 {[%clk 0:02:17]} 12. Bxg4 {[%clk 0:02:27]}  Nxg4 {[%clk 0:02:18]} 13. Kb1 {[%clk 0:02:19]}  a6 {[%clk 0:02:08]} 14. h3 {[%clk 0:02:09]}  Nf6 {[%clk 0:02:07]} 15. Nge2 {[%clk 0:01:52]}  Nxe2 {[%clk 0:02:04]} 16. Qxe2 {[%clk 0:01:51]}  exf4 {[%clk 0:02:02]} 17. g4 {[%clk 0:01:50]}  Re8 {[%clk 0:01:58]} 18. Qd3 {[%clk 0:01:43]}  Qc7 {[%clk 0:01:51]} 19. Qd4 {[%clk 0:01:33]}  Qc5 {[%clk 0:01:09]} 20. Qxf6 {[%clk 0:01:13]}  Bg7 {[%clk 0:01:06]} 21. Qxg7+ {[%clk 0:01:11]}  Kxg7 {[%clk 0:01:03]} 22. Na4+ {[%clk 0:01:12]}  Qe5 {[%clk 0:01:00]} 23. Rxd6 {[%clk 0:01:08]}  b5 {[%clk 0:00:47]} 24. Nc5 {[%clk 0:00:58]}  f6 {[%clk 0:00:35]} 25. Bxe5 {[%clk 0:00:56]}  Rxe5 {[%clk 0:00:33]} 26. b4 {[%clk 0:00:53]}  a5 {[%clk 0:00:33]} 27. a3 {[%clk 0:00:51]}  axb4 {[%clk 0:00:32]} 28. axb4 {[%clk 0:00:52]}  Rae8 {[%clk 0:00:31]} 29. Rhd1 {[%clk 0:00:49]}  Kg8 {[%clk 0:00:28]} 30. Rxf6 {[%clk 0:00:48]}  Rf8 {[%clk 0:00:25]} 31. Rxf8+ {[%clk 0:00:48]}  Kxf8 {[%clk 0:00:26]} 32. Nd7+ {[%clk 0:00:48]}  Ke7 {[%clk 0:00:26]} 33. Nxe5 {[%clk 0:00:49]}  Ke6 {[%clk 0:00:26]} 34. Nf3 {[%clk 0:00:49]}  Kf6 {[%clk 0:00:25]} 35. e5+ {[%clk 0:00:50]}  Ke6 {[%clk 0:00:26]} 36. Rd6+ {[%clk 0:00:50]}  Ke7 {[%clk 0:00:22]} 37. Rb6 {[%clk 0:00:51]} 1-0


[Site "https://www.chess.com"]

[Event "Titled Tuesday Blitz June 20 Early 2023"]
[White "De Souza, Cristiano Gomes"]
[Black "Aldokhin, Ivan"]
[WhiteFideId "2151758"]
[BlackFideId "24115720"]
[WhiteElo "2068"]
[BlackElo "2322"]
[Result "1/2-1/2"]
[Round "1"]
[TimeControl "180+2"]
[Date "2023.06.20"]
[WhiteClock "0:00:21"]
[BlackClock "0:00:06"]
[Board "194"]

1. d4 {[%clk 0:02:56]}  Nf6 {[%clk 0:02:33]} 2. c4 {[%clk 0:02:55]}  g6 {[%clk 0:02:33]} 3. Nf3 {[%clk 0:02:55]}  Bg7 {[%clk 0:02:34]} 4. Nc3 {[%clk 0:02:56]}  O-O {[%clk 0:02:34]} 5. e4 {[%clk 0:02:55]}  d6 {[%clk 0:02:34]} 6. Be2 {[%clk 0:02:55]}  Nc6 {[%clk 0:02:35]} 7. O-O {[%clk 0:02:55]}  Re8 {[%clk 0:02:35]} 8. d5 {[%clk 0:02:55]}  Nb4 {[%clk 0:02:36]} 9. a3 {[%clk 0:02:54]}  Na6 {[%clk 0:02:36]} 10. Be3 {[%clk 0:02:54]}  e6 {[%clk 0:02:36]} 11. Rc1 {[%clk 0:02:53]}  exd5 {[%clk 0:02:36]} 12. exd5 {[%clk 0:02:50]}  Nc5 {[%clk 0:02:35]} 13. b4 {[%clk 0:02:49]}  Nce4 {[%clk 0:02:34]} 14. Nxe4 {[%clk 0:02:49]}  Nxe4 {[%clk 0:02:35]} 15. Bd4 {[%clk 0:02:49]}  Bd7 {[%clk 0:02:32]} 16. Bxg7 {[%clk 0:02:49]}  Kxg7 {[%clk 0:02:32]} 17. Qd4+ {[%clk 0:02:50]}  Qf6 {[%clk 0:02:33]} 18. Qxf6+ {[%clk 0:02:49]}  Nxf6 {[%clk 0:02:07]} 19. Bd3 {[%clk 0:02:49]}  a5 {[%clk 0:02:06]} 20. Rfe1 {[%clk 0:02:48]}  axb4 {[%clk 0:02:04]} 21. axb4 {[%clk 0:02:45]}  Rxe1+ {[%clk 0:01:57]} 22. Nxe1 {[%clk 0:02:41]}  Ra4 {[%clk 0:01:51]} 23. Rb1 {[%clk 0:02:40]}  Ng4 {[%clk 0:01:45]} 24. f3 {[%clk 0:02:32]}  Ne5 {[%clk 0:01:45]} 25. Be2 {[%clk 0:02:27]}  Bf5 {[%clk 0:01:45]} 26. Rb2 {[%clk 0:02:23]}  Ra1 {[%clk 0:01:45]} 27. Kf2 {[%clk 0:02:23]}  Rc1 {[%clk 0:01:46]} 28. g4 {[%clk 0:02:12]}  Bc8 {[%clk 0:01:39]} 29. Rc2 {[%clk 0:02:11]}  Rb1 {[%clk 0:01:34]} 30. c5 {[%clk 0:02:08]}  Bd7 {[%clk 0:01:29]} 31. cxd6 {[%clk 0:02:07]}  cxd6 {[%clk 0:01:28]} 32. h3 {[%clk 0:01:52]}  Rxb4 {[%clk 0:01:25]} 33. Rc7 {[%clk 0:01:49]}  g5 {[%clk 0:01:20]} 34. Nd3 {[%clk 0:01:39]}  Nxd3+ {[%clk 0:01:17]} 35. Bxd3 {[%clk 0:01:40]}  Ba4 {[%clk 0:01:09]} 36. Bf5 {[%clk 0:01:38]}  b5 {[%clk 0:00:45]} 37. Kg3 {[%clk 0:01:35]}  Bd1 {[%clk 0:00:43]} 38. Rd7 {[%clk 0:01:25]}  Rb3 {[%clk 0:00:32]} 39. Be4 {[%clk 0:01:24]}  b4 {[%clk 0:00:17]} 40. Rxd6 {[%clk 0:01:23]}  Rb2 {[%clk 0:00:18]} 41. Rb6 {[%clk 0:01:20]}  b3 {[%clk 0:00:18]} 42. d6 {[%clk 0:01:19]}  Rd2 {[%clk 0:00:19]} 43. h4 {[%clk 0:01:13]}  h6 {[%clk 0:00:17]} 44. hxg5 {[%clk 0:01:13]}  hxg5 {[%clk 0:00:18]} 45. Rb5 {[%clk 0:01:08]}  Kf6 {[%clk 0:00:16]} 46. Rf5+ {[%clk 0:00:57]}  Ke6 {[%clk 0:00:16]} 47. Rxg5 {[%clk 0:00:56]}  Bc2 {[%clk 0:00:17]} 48. Rb5 {[%clk 0:00:46]}  Kxd6 {[%clk 0:00:12]} 49. Kf4 {[%clk 0:00:41]}  Bxe4 {[%clk 0:00:10]} 50. Kxe4 {[%clk 0:00:41]}  b2 {[%clk 0:00:10]} 51. g5 {[%clk 0:00:37]}  Ke6 {[%clk 0:00:05]} 52. Rb6+ {[%clk 0:00:35]}  Ke7 {[%clk 0:00:05]} 53. f4 {[%clk 0:00:32]}  Re2+ {[%clk 0:00:04]} 54. Kf5 {[%clk 0:00:31]}  Rc2 {[%clk 0:00:05]} 55. Rb7+ {[%clk 0:00:29]}  Kf8 {[%clk 0:00:06]} 56. g6 {[%clk 0:00:23]}  fxg6+ {[%clk 0:00:05]} 57. Kxg6 {[%clk 0:00:22]}  Rc6+ {[%clk 0:00:02]} 58. Kf5 {[%clk 0:00:22]}  Rc5+ {[%clk 0:00:01]} 59. Kf6 {[%clk 0:00:20]}  Rc6+ {[%clk 0:00:02]} 60. Ke5 {[%clk 0:00:20]}  Rc5+ {[%clk 0:00:02]} 61. Kd4 {[%clk 0:00:20]}  Rc2 {[%clk 0:00:03]} 62. Kd3 {[%clk 0:00:19]}  Rf2 {[%clk 0:00:03]} 63. Ke4 {[%clk 0:00:19]}  Re2+ {[%clk 0:00:03]} 64. Kf5 {[%clk 0:00:20]}  Rc2 {[%clk 0:00:03]} 65. Kf6 {[%clk 0:00:19]}  Rc6+ {[%clk 0:00:03]} 66. Ke5 {[%clk 0:00:20]}  Rc5+ {[%clk 0:00:04]} 67. Kd4 {[%clk 0:00:20]}  Rc2 {[%clk 0:00:05]} 68. Kd3 {[%clk 0:00:20]}  Rf2 {[%clk 0:00:05]} 69. Ke4 {[%clk 0:00:20]}  Ke8 {[%clk 0:00:04]} 70. f5 {[%clk 0:00:20]}  Re2+ {[%clk 0:00:03]} 71. Kd4 {[%clk 0:00:20]}  Kf8 {[%clk 0:00:03]} 72. Kc3 {[%clk 0:00:20]}  Rf2 {[%clk 0:00:02]} 73. Rxb2 {[%clk 0:00:19]}  Rxf5 {[%clk 0:00:03]} 74. Kd3 {[%clk 0:00:19]}  Kf7 {[%clk 0:00:03]} 75. Ke4 {[%clk 0:00:20]}  Rf6 {[%clk 0:00:04]} 76. Rb7+ {[%clk 0:00:20]}  Kg6 {[%clk 0:00:04]} 77. Rb3 {[%clk 0:00:19]}  Re6+ {[%clk 0:00:04]} 78. Kf3 {[%clk 0:00:19]}  Rf6+ {[%clk 0:00:05]} 79. Kg2 {[%clk 0:00:20]}  Rf5 {[%clk 0:00:05]} 80. Rg3+ {[%clk 0:00:21]}  Rg5 {[%clk 0:00:05]} 81. Rxg5+ {[%clk 0:00:21]}  Kxg5 {[%clk 0:00:06]} 1/2-1/2


[Site "https://www.chess.com"]

[Event "Titled Tuesday Blitz June 20 Early 2023"]
[White "TimGrutter03"]
[Black "Xavier_mompel"]
[WhiteElo "2578"]
[BlackElo "2225"]
[Result "1-0"]
[Round "1"]
[TimeControl "180+2"]
[Date "2023.06.20"]
[WhiteClock "0:00:46"]
[BlackClock "0:00:08"]
[Board "195"]

1. d4 {[%clk 0:03:00]}  d5 {[%clk 0:02:59]} 2. Nc3 {[%clk 0:03:01]}  Nf6 {[%clk 0:02:58]} 3. Bf4 {[%clk 0:03:01]}  e6 {[%clk 0:02:56]} 4. e3 {[%clk 0:03:00]}  Bd6 {[%clk 0:02:54]} 5. g4 {[%clk 0:02:56]}  O-O {[%clk 0:02:46]} 6. g5 {[%clk 0:02:56]}  Ne8 {[%clk 0:02:45]} 7. Bd3 {[%clk 0:02:55]}  c5 {[%clk 0:02:40]} 8. dxc5 {[%clk 0:02:53]}  Bxc5 {[%clk 0:02:34]} 9. Nf3 {[%clk 0:02:41]}  Nc6 {[%clk 0:02:29]} 10. Qd2 {[%clk 0:02:37]}  Bd6 {[%clk 0:02:27]} 11. Bxd6 {[%clk 0:02:28]}  Nxd6 {[%clk 0:02:25]} 12. O-O-O {[%clk 0:02:24]}  a6 {[%clk 0:02:24]} 13. h4 {[%clk 0:02:19]}  b5 {[%clk 0:02:23]} 14. h5 {[%clk 0:02:19]}  b4 {[%clk 0:02:21]} 15. Ne2 {[%clk 0:02:19]}  e5 {[%clk 0:02:20]} 16. Bxh7+ {[%clk 0:02:02]}  Kxh7 {[%clk 0:02:19]} 17. g6+ {[%clk 0:01:55]}  Kg8 {[%clk 0:02:05]} 18. Qxd5 {[%clk 0:01:54]}  Bb7 {[%clk 0:01:14]} 19. h6 {[%clk 0:00:55]}  Nf5 {[%clk 0:00:30]} 20. gxf7+ {[%clk 0:00:51]}  Rxf7 {[%clk 0:00:30]} 21. h7+ {[%clk 0:00:46]}  Kh8 {[%clk 0:00:08]} 22. Qxf7 {[%clk 0:00:46]} 1-0


[Site "https://www.chess.com"]

[Event "Titled Tuesday Blitz June 20 Early 2023"]
[White "Degenbaev, Aziz"]
[Black "Kiseleva, Arina"]
[WhiteFideId "13802640"]
[BlackFideId "4164989"]
[WhiteElo "2152"]
[BlackElo "1701"]
[Result "1-0"]
[Round "1"]
[TimeControl "180+2"]
[Date "2023.06.20"]
[WhiteClock "0:00:18"]
[BlackClock "0:00:00"]
[Board "197"]

1. e4 {[%clk 0:03:00]}  c6 {[%clk 0:02:59]} 2. d4 {[%clk 0:02:54]}  d5 {[%clk 0:03:00]} 3. e5 {[%clk 0:02:54]}  Bf5 {[%clk 0:02:59]} 4. Nd2 {[%clk 0:02:54]}  h6 {[%clk 0:02:49]} 5. Nb3 {[%clk 0:02:53]}  e6 {[%clk 0:02:49]} 6. Nf3 {[%clk 0:02:53]}  Nd7 {[%clk 0:02:47]} 7. Be2 {[%clk 0:02:53]}  a6 {[%clk 0:02:46]} 8. O-O {[%clk 0:02:52]}  c5 {[%clk 0:02:45]} 9. dxc5 {[%clk 0:02:52]}  Nxc5 {[%clk 0:02:44]} 10. Nfd4 {[%clk 0:02:52]}  Nxb3 {[%clk 0:02:42]} 11. axb3 {[%clk 0:02:46]}  Be4 {[%clk 0:02:42]} 12. f3 {[%clk 0:02:45]}  Bg6 {[%clk 0:02:40]} 13. f4 {[%clk 0:02:45]}  Bc5 {[%clk 0:02:35]} 14. Kh1 {[%clk 0:02:40]}  Ne7 {[%clk 0:02:28]} 15. Be3 {[%clk 0:02:22]}  Rc8 {[%clk 0:02:18]} 16. c3 {[%clk 0:02:14]}  Nf5 {[%clk 0:02:09]} 17. Nxf5 {[%clk 0:02:08]}  Bxf5 {[%clk 0:02:10]} 18. Bxc5 {[%clk 0:02:08]}  Rxc5 {[%clk 0:02:09]} 19. b4 {[%clk 0:02:07]}  Rc8 {[%clk 0:02:02]} 20. b5 {[%clk 0:02:06]}  axb5 {[%clk 0:01:51]} 21. Bxb5+ {[%clk 0:02:06]}  Kf8 {[%clk 0:01:49]} 22. Qd4 {[%clk 0:02:04]}  Qc7 {[%clk 0:01:46]} 23. Ra7 {[%clk 0:01:50]}  g5 {[%clk 0:01:35]} 24. Ba6 {[%clk 0:01:41]}  Rb8 {[%clk 0:01:16]} 25. Be2 {[%clk 0:00:38]}  Be4 {[%clk 0:01:04]} 26. Qe3 {[%clk 0:00:36]}  Rg8 {[%clk 0:00:43]} 27. Bf3 {[%clk 0:00:33]}  Bxf3 {[%clk 0:00:34]} 28. Qxf3 {[%clk 0:00:32]}  g4 {[%clk 0:00:31]} 29. Qe3 {[%clk 0:00:30]}  h5 {[%clk 0:00:14]} 30. f5 {[%clk 0:00:29]}  exf5 {[%clk 0:00:14]} 31. Rxf5 {[%clk 0:00:29]}  h4 {[%clk 0:00:10]} 32. Ra1 {[%clk 0:00:22]}  Qe7 {[%clk 0:00:07]} 33. Raf1 {[%clk 0:00:20]}  Rg7 {[%clk 0:00:06]} 34. e6 {[%clk 0:00:20]}  Kg8 {[%clk 0:00:01]} 35. exf7+ {[%clk 0:00:19]}  Kf8 {[%clk 0:00:01]} 36. Qxe7+ {[%clk 0:00:18]}  Kxe7 {[%clk 0:00:02]} 37. f8=Q+ {[%clk 0:00:18]}  Rxf8 {[%clk 0:00:02]} 38. Rxf8 {[%clk 0:00:19]}  g3 {[%clk 0:00:00]} 39. Rb8 {[%clk 0:00:18]} 1-0


[Site "https://www.chess.com"]

[Event "Titled Tuesday Blitz June 20 Early 2023"]
[White "Tsyhanchuk, Stanislav"]
[Black "Subelj, Jan"]
[WhiteFideId "13505130"]
[BlackFideId "14618583"]
[WhiteElo "2173"]
[BlackElo "2499"]
[Result "0-1"]
[Round "1"]
[TimeControl "180+2"]
[Date "2023.06.20"]
[WhiteClock "0:00:20"]
[BlackClock "0:00:56"]
[Board "198"]

1. c4 {[%clk 0:02:59]}  e5 {[%clk 0:02:59]} 2. Nc3 {[%clk 0:02:59]}  Nf6 {[%clk 0:02:59]} 3. Nf3 {[%clk 0:02:59]}  e4 {[%clk 0:02:57]} 4. Ng5 {[%clk 0:02:59]}  c6 {[%clk 0:02:58]} 5. Ngxe4 {[%clk 0:02:56]}  Nxe4 {[%clk 0:02:59]} 6. Nxe4 {[%clk 0:02:57]}  d5 {[%clk 0:02:59]} 7. cxd5 {[%clk 0:02:57]}  cxd5 {[%clk 0:03:00]} 8. Nc3 {[%clk 0:02:57]}  d4 {[%clk 0:02:59]} 9. Ne4 {[%clk 0:02:54]}  Nc6 {[%clk 0:02:58]} 10. e3 {[%clk 0:02:40]}  Be7 {[%clk 0:02:55]} 11. Bc4 {[%clk 0:02:33]}  Bf5 {[%clk 0:02:45]} 12. Ng3 {[%clk 0:02:31]}  Bg6 {[%clk 0:02:45]} 13. O-O {[%clk 0:02:30]}  O-O {[%clk 0:02:43]} 14. a4 {[%clk 0:02:20]}  Nb4 {[%clk 0:02:39]} 15. e4 {[%clk 0:02:16]}  d3 {[%clk 0:02:37]} 16. Ra3 {[%clk 0:02:11]}  Rc8 {[%clk 0:02:34]} 17. Qb3 {[%clk 0:01:53]}  Qc7 {[%clk 0:02:29]} 18. Bxd3 {[%clk 0:01:48]}  Nxd3 {[%clk 0:02:28]} 19. Qxd3 {[%clk 0:01:48]}  Bxa3 {[%clk 0:02:28]} 20. Qxa3 {[%clk 0:01:47]}  Bxe4 {[%clk 0:02:20]} 21. Nxe4 {[%clk 0:01:46]}  Qxc1 {[%clk 0:02:20]} 22. Nd6 {[%clk 0:01:39]}  Rc7 {[%clk 0:02:18]} 23. Nf5 {[%clk 0:01:33]}  Qc5 {[%clk 0:02:12]} 24. Qf3 {[%clk 0:01:26]}  g6 {[%clk 0:02:08]} 25. Qg3 {[%clk 0:01:24]}  Rd8 {[%clk 0:02:03]} 26. d4 {[%clk 0:01:21]}  Qc6 {[%clk 0:01:50]} 27. Qg5 {[%clk 0:01:11]}  Re8 {[%clk 0:01:38]} 28. d5 {[%clk 0:01:09]}  Qd7 {[%clk 0:01:32]} 29. d6 {[%clk 0:01:06]}  Rc2 {[%clk 0:01:24]} 30. Ne7+ {[%clk 0:01:00]}  Kg7 {[%clk 0:01:15]} 31. Qe5+ {[%clk 0:00:58]}  f6 {[%clk 0:01:14]} 32. Qd4 {[%clk 0:00:54]}  Re2 {[%clk 0:01:08]} 33. Qd1 {[%clk 0:00:36]}  Re6 {[%clk 0:01:05]} 34. Re1 {[%clk 0:00:27]}  Rxe1+ {[%clk 0:00:56]} 35. Qxe1 {[%clk 0:00:20]}  Qxd6 {[%clk 0:00:56]} 0-1


[Site "https://www.chess.com"]

[Event "Titled Tuesday Blitz June 20 Early 2023"]
[White "SicilianPanzer"]
[Black "Lamaze, Simon"]
[BlackFideId "36069264"]
[WhiteElo "2215"]
[BlackElo "2272"]
[Result "0-1"]
[Round "1"]
[TimeControl "180+2"]
[Date "2023.06.20"]
[WhiteClock "0:00:04"]
[BlackClock "0:00:45"]
[Board "200"]

1. e4 {[%clk 0:02:59]}  c5 {[%clk 0:03:00]} 2. Nf3 {[%clk 0:02:59]}  d6 {[%clk 0:02:59]} 3. d4 {[%clk 0:02:59]}  cxd4 {[%clk 0:03:00]} 4. Nxd4 {[%clk 0:02:59]}  Nf6 {[%clk 0:03:01]} 5. Nc3 {[%clk 0:02:59]}  a6 {[%clk 0:02:59]} 6. Be3 {[%clk 0:02:59]}  e5 {[%clk 0:02:58]} 7. Nb3 {[%clk 0:02:59]}  Be7 {[%clk 0:02:59]} 8. Rg1 {[%clk 0:02:59]}  h5 {[%clk 0:02:56]} 9. h3 {[%clk 0:02:49]}  Be6 {[%clk 0:02:53]} 10. g4 {[%clk 0:02:46]}  hxg4 {[%clk 0:02:51]} 11. hxg4 {[%clk 0:02:46]}  Nc6 {[%clk 0:02:52]} 12. g5 {[%clk 0:02:38]}  Nd7 {[%clk 0:02:51]} 13. Qf3 {[%clk 0:02:31]}  Na5 {[%clk 0:02:39]} 14. O-O-O {[%clk 0:02:16]}  Rc8 {[%clk 0:02:23]} 15. Nd5 {[%clk 0:01:48]}  Nxb3+ {[%clk 0:02:12]} 16. axb3 {[%clk 0:01:46]}  Nc5 {[%clk 0:02:13]} 17. Kb1 {[%clk 0:01:28]}  Rh4 {[%clk 0:02:01]} 18. Bd3 {[%clk 0:00:55]}  Rh3 {[%clk 0:01:53]} 19. Qg2 {[%clk 0:00:48]}  Nxd3 {[%clk 0:01:26]} 20. Rxd3 {[%clk 0:00:46]}  g6 {[%clk 0:01:02]} 21. Rh1 {[%clk 0:00:28]}  Rxh1+ {[%clk 0:01:01]} 22. Qxh1 {[%clk 0:00:28]}  Bxd5 {[%clk 0:01:02]} 23. Rxd5 {[%clk 0:00:24]}  Qd7 {[%clk 0:00:59]} 24. Qh8+ {[%clk 0:00:19]}  Bf8 {[%clk 0:00:58]} 25. Qf6 {[%clk 0:00:18]}  Qe6 {[%clk 0:00:58]} 26. f4 {[%clk 0:00:14]}  Be7 {[%clk 0:00:53]} 27. Qh8+ {[%clk 0:00:14]}  Kd7 {[%clk 0:00:53]} 28. Qh2 {[%clk 0:00:14]}  exf4 {[%clk 0:00:53]} 29. Bxf4 {[%clk 0:00:14]}  Qxe4 {[%clk 0:00:53]} 30. Qd2 {[%clk 0:00:06]}  Rxc2 {[%clk 0:00:53]} 31. Qxc2 {[%clk 0:00:02]}  Qxd5 {[%clk 0:00:53]} 32. Be3 {[%clk 0:00:02]}  Bxg5 {[%clk 0:00:51]} 33. Bb6 {[%clk 0:00:01]}  Qh1+ {[%clk 0:00:50]} 34. Ka2 {[%clk 0:00:02]}  Qc6 {[%clk 0:00:50]} 35. Qf2 {[%clk 0:00:01]}  f5 {[%clk 0:00:51]} 36. Qg3 {[%clk 0:00:01]}  Qxb6 {[%clk 0:00:50]} 37. Qxg5 {[%clk 0:00:02]}  Qa5+ {[%clk 0:00:49]} 38. Kb1 {[%clk 0:00:03]}  Qe1+ {[%clk 0:00:50]} 39. Ka2 {[%clk 0:00:03]}  Qe6 {[%clk 0:00:50]} 40. Qh6 {[%clk 0:00:04]}  Kc6 {[%clk 0:00:50]} 41. Qg7 {[%clk 0:00:05]}  Kd5 {[%clk 0:00:50]} 42. b4 {[%clk 0:00:05]}  b5 {[%clk 0:00:50]} 43. Qb7+ {[%clk 0:00:04]}  Kd4+ {[%clk 0:00:49]} 44. Ka3 {[%clk 0:00:05]}  f4 {[%clk 0:00:50]} 45. Qxa6 {[%clk 0:00:05]}  Qe3+ {[%clk 0:00:49]} 46. Ka2 {[%clk 0:00:04]}  Qe6+ {[%clk 0:00:48]} 47. Ka3 {[%clk 0:00:04]}  Qd5 {[%clk 0:00:48]} 48. Qb6+ {[%clk 0:00:04]}  Kd3 {[%clk 0:00:49]} 49. Qf2 {[%clk 0:00:04]}  f3 {[%clk 0:00:49]} 50. b3 {[%clk 0:00:03]}  g5 {[%clk 0:00:44]} 51. Kb2 {[%clk 0:00:03]}  Qd4+ {[%clk 0:00:44]} 52. Ka3 {[%clk 0:00:02]}  Qa1+ {[%clk 0:00:43]} 53. Qa2 {[%clk 0:00:02]}  Qxa2+ {[%clk 0:00:43]} 54. Kxa2 {[%clk 0:00:03]}  f2 {[%clk 0:00:44]} 55. Kb2 {[%clk 0:00:03]}  f1=Q {[%clk 0:00:45]} 56. Ka3 {[%clk 0:00:04]}  Qa1# {[%clk 0:00:45]} 0-1


[Site "https://www.chess.com"]